Cogmind - Beta 9.6 @@@ ROGUE MODE // 2020.09.05 @ 01:35:29 Player: Finestep Result: Destroyed by S-43 Plague with Heavy Machine Gun Performance ------------- Evolutions (7) 3500 Regions Visited (27) 5400 Robots Destroyed (356) 1780 Value Destroyed (17900) 17900 Prototype IDs (55) 1100 Alien Tech Used (5) 1000 Bonus (15424) 15424 TOTAL SCORE: 46104 Bonus ------- High Alert Combat Kills 2806 Follower Combat Kills 6948 Entered Garrisons 1200 Used RIF Installer 3000 Met Data Miner 300 Used Core Reset Matrix 3000 Friendly Fire -1830 Cogmind --------- Core Integrity 0/1300 Matter 259/300 Energy 100/100 System Corruption 7% Temperature Cool (0) Movement Flying (40) Location -3/Quarantine Parts ------- > --- POWER (2) -------- (None) > --- PROPULSION (5) --- Q-thruster > --- UTILITY (12) ----- Improved Armor Integrity Analyzer Component Analysis Suite > --- WEAPON (2) ------- (None) > --- INVENTORY (4) ---- Matter Drive Sigix Broadsword Peak State ------------ > --- POWER ------------ Light Antimatter Reactor Light Antimatter Reactor > --- PROPULSION ------- Cooled Aerolev Unit Cooled Aerolev Unit Combat Airjet Combat Gravmag System Combat Gravmag System > --- UTILITY ---------- Large Storage Unit Large Storage Unit Superbattery Advanced Armor Integrity Analyzer Precision Energy Filter Advanced Transmission Jammer Improved Propulsion Shielding Layered Medium Armor Plating Improved Remote Shield Antimissile System Relay Coupler [Brawler] Relay Coupler [Hunter] > --- WEAPON ----------- HERF Cannon Improved Remote Datajack > --- INVENTORY -------- Light Antimatter Reactor Combat Airjet Experimental Cooling System Gravity Neutralizing Apparatus Advanced Signal Interpreter Improved Remote Shield Hacking Suite Relay Coupler [Duelist] Relay Coupler [Demolisher] Relay Coupler [Behemoth] Long-range Proton Cannon Nova Cannon Hypervelocity Mass Driver Advanced EMP Blaster Micro-nuke Launcher Phasing Sabre [Rating: 129] Favorites ----------- Power Micro Nuclear Core Engine Reinforced Deuterium Engine Power Core Micro Nuclear Core Reactor Light Antimatter Reactor Propulsion Light Treads Treads Light Treads Leg Aluminum Leg Wheel Armored Wheel Hover Unit Combat Gravmag System Flight Unit Electron Diverter Utility Large Storage Unit Device Advanced Heat Sink Storage Large Storage Unit Processor Enhanced Optical Array Hackware Relay Coupler [Sentry] Protection Improved Medium Armor Plating Artifact Stasis Generator Weapon Precision Assault Rifle Energy Gun Precision Shock Rifle Energy Cannon EM Pulse Cannon Ballistic Gun Precision Assault Rifle Ballistic Cannon Heavy Gauss Cannon Launcher Advanced EMP Blaster Special Weapon Remote Datajack Slashing Weapon Power Sword Piercing Weapon Heavy Pick Special Melee Weapon Datajack Build | -11 -10 -10 -10 -9 -8 -8 -8 -8 -7 -7 -7 -7 -6 -6 -6 -6 -6 -6 -5 -5 -5 -4 -4 -4 -4 -3 -3 ------- Run | Scr Mat Min Exi Min Mat Gar Mat Gar Fac Gar Fac Gar Fac Gar Fac Low Low Dat Pro Fac Gar Fac Was Fac Ext Res Qua Slots Evolved 14 | . . . . . 4 . . . 2 . . . 2 . . . . . . 2 . 2 . . . 2 . Power 1 | . . . . . . . . . . . . . . . . . . . . 1 . . . . . . . Propulsion 3 | . . . . . 1 . . . . . . . 1 . . . . . . . . . . . . 1 . Utility 10 | . . . . . 3 . . . 2 . . . 1 . . . . . . 1 . 2 . . . 1 . Weapon . | . . . . . . . . . . . . . . . . . . . . . . . . . . . . Parts Attached 731 | 7 21 . 4 5 64 26 8 37 31 51 19 41 66 33 32 3 6 . 42 19 30 8 9 27 37 73 32 Power 53 | 1 1 . . 1 4 . . . . 3 3 1 3 1 1 . . . 5 3 1 . 1 3 7 10 4 Engine 14 | 1 1 . . 1 1 . . . . 1 2 1 2 1 1 . . . 2 . . . . . . . . Core 17 | . . . . . 3 . . . . 2 1 . . . . . . . 1 2 1 . . 1 4 . 2 Reactor 22 | . . . . . . . . . . . . . 1 . . . . . 2 1 . . 1 2 3 10 2 Propulsion 106 | 2 6 . . . 15 3 3 3 3 9 7 8 9 3 4 . . . 6 2 . 1 1 2 2 12 5 Treads 58 | 2 5 . . . 12 3 2 2 2 5 2 4 8 3 . . . . 1 2 . . 1 2 2 . . Leg 3 | . . . . . 3 . . . . . . . . . . . . . . . . . . . . . . Wheel 28 | . 1 . . . . . 1 1 1 4 5 4 1 . 4 . . . 5 . . 1 . . . . . Hover 13 | . . . . . . . . . . . . . . . . . . . . . . . . . . 12 1 Flight 4 | . . . . . . . . . . . . . . . . . . . . . . . . . . . 4 Utility 235 | 2 4 . . . 15 10 1 14 12 15 3 11 17 13 6 . 2 . 11 7 15 5 6 14 10 28 14 Device 69 | . . . . . 2 . . 3 1 2 . 5 2 4 1 . 1 . 1 3 5 2 4 6 5 17 5 Storage 29 | 2 4 . . . 3 1 . 1 . 1 . 2 1 . . . . . 7 . . 1 . 3 . 2 1 Processor 15 | . . . . . 1 . . . 3 . . . 1 . . . . . . . . . . 1 . 2 7 Hackware 61 | . . . . . . 4 . 6 4 4 2 2 8 8 3 . . . 1 1 7 2 . 2 4 3 . Protection 60 | . . . . . 9 5 1 4 4 8 1 2 5 1 2 . 1 . 2 3 3 . 2 2 1 4 . Artifact 1 | . . . . . . . . . . . . . . . . . . . . . . . . . . . 1 Weapon 337 | 2 10 . 4 4 30 13 4 20 16 24 6 21 37 16 21 3 4 . 20 7 14 2 1 8 18 23 9 Energy Gun 11 | . . . . . 5 2 . . . . . 3 1 . . . . . . . . . . . . . . Energy Cannon 22 | . . . . . . . . 2 4 . . . . 2 . . . . 2 . . . . . 1 8 3 Ballistic Gun 140 | 2 7 . . 2 19 6 4 6 7 11 2 12 19 7 9 3 3 . 11 4 6 . . . . . . Ballistic Cannon 24 | . 2 . 2 2 1 . . . . . . . . . . . . . . . 2 . . 3 10 2 . Launcher 28 | . 1 . . . 5 2 . 1 . 1 . 1 . . 3 . 1 . . 2 1 . . 1 1 5 3 Special Weapon 78 | . . . . . . 2 . 7 4 10 2 5 15 6 4 . . . 5 1 4 2 . 2 6 3 . Impact Weapon . | . . . . . . . . . . . . . . . . . . . . . . . . . . . . Slashing Weapon 26 | . . . 1 . . 1 . 4 1 2 2 . . . 3 . . . 2 . 1 . 1 2 . 4 2 Piercing Weapon 7 | . . . . . . . . . . . . . 2 1 2 . . . . . . . . . . 1 1 Special Melee Weapon 1 | . . . 1 . . . . . . . . . . . . . . . . . . . . . . . . Unidentified Prototypes 11 | . . . . . 3 . . . 1 . . . . . 1 . . . . 2 . . . . . 1 3 Parts Lost 89 | . . . . . 20 2 . . 1 7 3 6 2 9 1 . . . . 2 . . . . 2 20 14 Power 18 | . . . . . 3 . . . . 2 3 1 . 1 . . . . . 1 . . . . 1 6 . Propulsion 29 | . . . . . 6 2 . . . 2 . 4 2 4 1 . . . . . . . . . . 2 6 Utility 25 | . . . . . 6 . . . 1 . . 1 . 2 . . . . . . . . . . 1 9 5 Weapon 17 | . . . . . 5 . . . . 3 . . . 2 . . . . . 1 . . . . . 3 3 Highest Loss Streak 8 | . . . . . 6 1 . . 1 3 3 1 1 3 1 . . . . 2 . . . . 1 8 4 Average Slot Usage (%) 93 | . 99 100 100 100 98 99 100 99 95 97 99 99 99 90 95 86 86 86 83 86 87 86 85 86 88 97 56 Engine 3 | . 14 14 14 14 4 . . . . . . 4 6 2 6 6 6 6 3 . . . . . . . . Core 4 | . . . . . 3 9 9 9 7 6 6 2 . . . . . . . 7 11 10 6 3 3 . 3 Reactor 1 | . . . . . . . . . . . . . . 3 . . . . 1 1 . . 3 6 6 8 1 Treads 13 | . 27 28 28 28 21 26 27 18 10 13 6 7 16 19 9 . . . . 7 11 6 4 9 9 . . Wheel 5 | . . . . . . . . 9 7 7 15 14 9 . 11 13 13 13 12 3 . 3 5 . . . . Hover 1 | . . . . . . . . . . . . . . . . . . . . . . . . . . 22 10 Device 4 | . . . . . . . . 6 3 3 8 3 . 5 4 . . . . 1 6 16 12 10 10 13 2 Storage 26 | . 28 28 28 28 26 27 27 29 30 30 30 30 33 30 26 26 26 26 24 23 23 21 21 25 22 11 7 Processor 3 | . . . . . 5 3 . . 2 6 . . 3 6 6 6 6 6 6 5 2 . . 3 5 7 14 Hackware 8 | . . . . . . . . 2 9 5 10 11 9 7 10 13 13 13 15 17 15 11 15 11 16 16 6 Protection 4 | . . . . . 11 14 18 6 6 4 2 5 5 1 3 6 6 6 3 3 2 5 5 3 1 5 . Ballistic Gun 8 | . 26 . . 11 14 12 18 11 2 13 8 12 11 5 7 12 12 13 8 3 6 . . . . . . Ballistic Cannon 1 | . 1 28 9 16 3 . . . . . . . . . . . . . . . 1 5 1 3 6 . . Special Weapon 1 | . . . . . . 4 . . 6 1 3 . . 3 2 . . . . 4 1 4 5 3 2 2 . Slashing Weapon 1 | . . . 8 . . . . 1 . . 2 . . . 2 . . . 1 . . . 3 2 . 2 3 Naked Turns 2 | . . . . . . . . . . . . . . . . . . . . . . . . . . . 2 Heaviest Build 176 | 17 77 77 77 83 105 107 107 112 124 120 121 142 143 146 114 113 115 113 113 123 137 137 154 176 149 104 60 Greatest Support 145 | 40 40 40 40 40 60 60 60 12 28 40 36 24 88 88 68 56 56 56 56 140 140 140 28 145 145 112 97 Greatest Overweight (x) 11 | 1 4 1 1 2 8 2 8 9 10 9 5 9 11 5 8 2 2 2 6 4 . 4 5 4 1 1 1 Average Overweight (x) 2 | . . 1 1 1 1 1 1 8 6 7 3 4 3 1 2 1 2 2 1 2 . 2 4 . . . . Largest Inventory Capacity 38 | 8 20 20 20 20 26 26 26 32 32 32 32 38 38 38 30 30 30 30 30 30 30 30 30 30 30 30 16 Average Capacity 28 | 6 18 20 20 20 25 26 26 27 32 32 32 32 38 34 30 30 30 30 28 30 30 30 30 30 30 16 10 Most Carried 38 | 7 20 20 20 20 26 26 26 32 32 32 32 36 38 38 30 30 30 30 30 30 30 30 30 30 30 26 16 Average Carried 27 | 3 17 20 19 19 24 25 25 27 31 31 31 31 37 33 29 29 30 30 28 29 29 29 29 29 29 15 9 Final Capacity 38 | 8 20 20 20 20 26 26 26 32 32 32 32 38 38 30 30 30 30 30 30 30 30 30 30 30 30 16 4 Final Carried 38 | 7 20 20 20 20 26 26 26 32 32 32 32 36 38 30 30 30 30 30 30 30 30 30 30 30 29 14 4 Class Distribution -------------------- 49% | Botlord-Mutant 20% | Bothacker-Mutant 20% | Hauler-Mutant 4% | Commander-Mutant Dominant Class ---------------- Hauler-Mutant | -10/Materials Hauler-Mutant | -10/Mines Hauler-Mutant | -10/Exiles Hauler-Mutant | -9/Mines Hauler-Mutant | -8/Materials Hauler-Mutant | -8/Garrison Scavenger-Mutant | -8/Materials Bothacker-Mutant | -8/Garrison Bothacker-Mutant | -7/Factory Bothacker-Mutant | -7/Garrison Bothacker-Mutant | -7/Factory Botlord-Mutant | -7/Garrison Botlord-Mutant | -6/Factory Botlord-Mutant | -6/Garrison Botlord-Mutant | -6/Factory Botlord-Mutant | -6/Lower Caves Botlord-Mutant | -6/Lower Caves Botlord-Mutant | -6/Data Miner Botlord-Mutant | -5/Proximity Caves Botlord-Mutant | -5/Factory Botlord-Mutant | -5/Garrison Botlord-Mutant | -4/Factory Botlord-Mutant | -4/Waste Botlord-Mutant | -4/Factory Botlord-Mutant | -4/Extension Botlord-Mutant | -3/Research Scavenger-Mutant | -3/Quarantine Resources | -11 -10 -10 -10 -9 -8 -8 -8 -8 -7 -7 -7 -7 -6 -6 -6 -6 -6 -6 -5 -5 -5 -4 -4 -4 -4 -3 -3 ----------- Run | Scr Mat Min Exi Min Mat Gar Mat Gar Fac Gar Fac Gar Fac Gar Fac Low Low Dat Pro Fac Gar Fac Was Fac Ext Res Qua Matter Collected 17065 | 231 621 . 204 317 2072 589 143 633 474 1428 244 1071 1414 814 484 138 152 . 967 210 820 175 148 658 1859 748 451 Remotely 173 | . . . . . 173 . . . . . . . . . . . . . . . . . . . . . . Salvage Created 18489 | 93 649 6 354 134 3007 822 98 527 522 1311 317 1273 1784 282 569 . 166 . 1332 150 866 105 . 386 1725 1356 655 Parts 841 | 8 43 1 12 14 151 45 4 26 25 65 10 55 81 10 25 . 15 . 52 7 35 3 . 18 46 59 31 Haulers Intercepted 12 | . 1 . . . 5 . 1 . 2 . . . . . . . . . . 1 . . . 1 . . 1 Recyclers Shooed 23 | . 3 1 . . 2 . . . 1 . 1 . 3 . 2 . . . . 3 . 1 . 2 3 1 . Parts Field Recycled . | . . . . . . . . . . . . . . . . . . . . . . . . . . . . Retrieved Matter . | . . . . . . . . . . . . . . . . . . . . . . . . . . . . Parts Self-Destructed 72 | . . . . . . . . . . . . . . . . 6 19 . 47 . . . . . . . . Prevented 14 | . . . . . . . . . . . . . . . . . . . 14 . . . . . . . . Kills | -11 -10 -10 -10 -9 -8 -8 -8 -8 -7 -7 -7 -7 -6 -6 -6 -6 -6 -6 -5 -5 -5 -4 -4 -4 -4 -3 -3 ------- Run | Scr Mat Min Exi Min Mat Gar Mat Gar Fac Gar Fac Gar Fac Gar Fac Low Low Dat Pro Fac Gar Fac Was Fac Ext Res Qua Combat Hostiles Destroyed 255 | . 15 . . 6 52 14 1 7 5 21 1 20 17 7 3 . 8 . 8 2 15 1 . 8 17 19 8 Melee 18 | . . . . . . 1 . . 1 1 1 . . . 1 . . . . . 3 . . 1 . 5 4 Guns 142 | . 15 . . 2 30 11 1 6 4 17 . 15 17 6 . . 1 . 7 2 8 . . . . . . Cannons 36 | . . . . 4 9 . . 1 . . . . . . . . . . . . . 1 . 6 13 1 1 AOE 43 | . . . . . 11 1 . . . 3 . 4 . . 2 . 7 . . . 4 . . . 3 5 3 Classes Destroyed 22 | 2 6 . . 3 5 1 . . . . . . . 1 . . . . 1 . 1 . . . 2 . . Worker 22 | . 1 . . 1 7 . . . . . . . 3 . 3 . . . . . . . . 1 2 1 3 Builder 8 | . . . . 1 2 . . . . . . . 4 . . . . . . . . . . . . 1 . Tunneler 6 | 1 . 1 . . 1 . . . 1 . . . . . 1 . . . . . . . . . 1 . . Hauler 12 | . 1 . . . 5 . 1 . 2 . . . . . . . . . . 1 . . . 1 . . 1 Recycler 28 | 1 2 . . . 5 . . . 2 . 3 . 5 . 3 . . . . . . 1 . 1 5 . . Mechanic 3 | . . . . . 1 . . . . . . . 1 . . . . . . . . . . . . 1 . Operator 4 | . 1 . . . 1 . . . . . . . . . . . . . . . . . . . . . 2 Drone 2 | . . . . . . . . . . . . . . . . . . . 1 . . . . . . 1 . Watcher 10 | . 2 . . . 2 . . . . . . . 2 . . . . . . . . . . . 1 2 1 Swarmer 65 | . 11 . . 3 9 3 . 1 . 5 . 4 6 3 2 . 7 . 1 . 4 . . . 2 4 . Saboteur 2 | . . . . . . . . . . . . . . . . . . . . . . . . . 1 1 . Grunt 112 | . 4 . . 1 33 6 1 4 3 10 . 12 8 2 1 . 1 . . . 7 . . 1 9 6 3 Brawler 5 | . . . . 1 1 . . . . 1 . . 1 . . . . . . 1 . . . . . . . Duelist 4 | . . . . . 1 . . . . 2 . . . . . . . . . . . . . . . 1 . Protector 4 | . . . . . . . . . . . . . . 1 . . . . 3 . . . . . . . . Sentry 28 | . . . . . 5 3 . 1 . 1 1 3 2 1 . . . . 1 1 4 . . . 2 3 . Demolisher 4 | . . . . . . 1 . . . . . . . . . . . . 2 . . . . . 1 . . Specialist 1 | . . . . . . . . . . . . . . . . . . . . . 1 . . . . . . Hunter 13 | . . . . . 2 1 . 1 . . . 1 . . . . . . 1 . . . . 1 1 2 3 Programmer 17 | . . . . . 1 . . . 2 2 . . 2 . . . . . . . . 1 . 6 . 1 2 Behemoth 1 | . . . . . . . . . . . . . . . . . . . . . . . . . 1 . . Assembled 1 | . . . . 1 . . . . . . . . . . . . . . . . . . . . . . . Savage 3 | . . . . . . . . . . . . . . . . . . . . . . . . . 3 . . Guerrilla 1 | . . . . . . . . . . . . . . . . . . . . . . . . . 1 . . Best Kill Streak 7 | 2 6 1 . 4 7 4 1 2 4 5 1 7 5 3 2 . 7 . 2 1 4 2 . 3 6 4 4 Combat Bots Only 7 | . 5 . . 4 6 4 1 2 3 5 1 7 4 3 2 . 7 . 2 1 4 1 . 2 4 4 3 Max Kills in Single Turn 7 | 1 1 1 . 2 4 1 1 1 2 3 1 3 2 1 2 . 7 . 1 1 4 1 . 1 2 4 2 Gunslinging 1 | . . . . . . . . . . . . . 1 . . . . . . . . . . . . . . Exploded 7 | . . . . . 3 1 . . . 3 . 3 . . 2 . 7 . . . 4 . . . 2 4 2 Melee 1 | . . . . . . 1 . . 1 1 1 . . . 1 . . . . . 1 . . 1 . 1 1 Uniques/NPCs Destroyed . | . . . . . . . . . . . . . . . . . . . . . . . . . . . . Combat | -11 -10 -10 -10 -9 -8 -8 -8 -8 -7 -7 -7 -7 -6 -6 -6 -6 -6 -6 -5 -5 -5 -4 -4 -4 -4 -3 -3 -------- Run | Scr Mat Min Exi Min Mat Gar Mat Gar Fac Gar Fac Gar Fac Gar Fac Low Low Dat Pro Fac Gar Fac Was Fac Ext Res Qua Damage Taken 25122 | . 452 . . 323 3799 880 50 351 441 1630 152 1327 1571 1602 423 350 105 . 613 515 687 44 125 868 1644 4169 3001 Core 3274 | . 77 . . 47 351 78 . 46 23 261 57 81 218 180 40 56 . . 101 37 51 . 26 87 142 480 835 Absorbed by Shields 1315 | . . . . . . 27 . . . 20 . . . 215 . . . . . . 24 . . 39 230 760 . Reduced by Siege Mode 76 | . . . . . . . . . . . . . . . . . . . . . . . . . 76 . . Core Remaining (%) 57 | 100 . . . 50 . . . 13 . . . 39 . . . . . . 30 . 91 . . . 77 . . Volleys Fired 1549 | 4 90 2 . 26 202 67 11 73 46 164 11 113 133 66 32 11 10 . 120 28 52 10 7 62 130 63 16 Largest 2 | 2 2 2 . 2 2 2 2 2 2 2 2 2 2 2 2 2 2 . 2 2 2 1 1 2 2 1 1 Hottest 122 | 40 40 70 . 80 100 100 51 86 63 56 56 110 60 75 60 60 60 . 75 75 63 61 61 122 122 94 113 Shots Fired 2371 | 8 179 4 . 52 394 97 22 94 64 253 14 189 219 98 43 22 19 . 149 34 73 10 7 78 170 63 16 Gun 1557 | 8 178 . . 21 319 74 22 41 41 191 6 166 185 72 26 22 18 . 101 16 50 . . . . . . Cannon 405 | . . 4 . 31 68 . . 10 10 . . . . 7 . . . . 30 11 . 10 2 53 113 49 7 Launcher 48 | . 1 . . . 7 3 . 3 . 1 . 3 . . 6 . 1 . . 3 1 . . 1 2 7 9 Special 361 | . . . . . . 20 . 40 13 61 8 20 34 19 11 . . . 18 4 22 . 5 24 55 7 . Kinetic 1781 | 8 178 4 . 52 373 70 22 41 41 191 6 154 185 72 26 22 18 . 101 16 50 10 2 53 84 2 . Thermal 64 | . . . . . . 11 . 17 . 21 . 11 . . . . . . . . . . . . . . 4 Explosive 23 | . 1 . . . 4 . . . . . . . . . . . 1 . . 3 1 . . 1 2 1 9 Electromagnetic 202 | . . . . . 17 7 . 13 10 1 . 15 . 7 6 . . . 30 11 . . . . 29 53 3 Robot Hit Streak 36 | 7 10 2 . 8 21 20 25 29 13 31 5 21 36 15 6 8 5 . 19 9 13 4 6 14 29 12 6 Robot Miss Streak 5 | . 4 1 . 4 5 2 3 4 2 2 2 3 3 5 4 2 3 . 3 1 3 1 . 2 4 2 1 Penetration Max 2 | . . . . . 1 1 . . . . . . 2 . . . . . 2 . 1 1 . 1 1 . . Secondary Targets 14 | . 2 . . . 4 1 . . . 1 . 1 2 2 . . 1 . . . . . . . . . . Max Gunslinging Chain 1 | . 1 . . . 1 1 . . . 1 . 1 1 1 . . 1 . . . . . . . . . . Shots Hit Robots 1749 | 7 113 2 19 27 284 73 18 61 53 168 15 125 165 59 37 16 11 . 109 24 54 7 17 62 121 72 30 Core Hits 683 | 3 40 1 8 9 131 30 4 15 13 57 6 47 65 14 13 3 16 . 49 8 24 2 . 13 55 36 21 Critical Hits 89 | . . . . 4 12 2 . 3 . 5 . 3 1 . 1 . . . 16 4 7 3 . 5 17 5 1 Critical Kills 40 | . . . . 2 5 1 . 1 . . . 2 . . 1 . . . 8 2 6 1 . . 7 3 1 Critical Parts Destroyed 42 | . . . . 2 6 1 . 1 . 5 . 1 1 . . . . . 7 2 1 1 . 4 8 2 . Melee Attacks 306 | . . . 19 . . 5 . 20 4 23 15 . 10 2 25 . . . 23 . 7 . 12 14 . 69 58 Thermal 3 | . . . . . . . . . . . 3 . . . . . . . . . . . . . . . . Impact . | . . . . . . . . . . . . . . . . . . . . . . . . . . . . Slashing 283 | . . . 17 . . 5 . 20 4 23 12 . . . 19 . . . 23 . 7 . 12 14 . 69 58 Piercing 18 | . . . . . . . . . . . . . 10 2 6 . . . . . . . . . . . . Sneak Attacks 57 | . . . 2 . . . . . 1 3 6 . . . 11 . . . . . 5 . 12 6 . 6 5 Combat Hostiles 31 | . . . 2 . . . . . . 3 1 . . . . . . . . . 5 . 12 6 . 2 . Follow-up Attacks . | . . . . . . . . . . . . . . . . . . . . . . . . . . . . Damage Inflicted 47343 | 91 1027 50 1964 546 6345 1628 327 816 999 3579 395 2622 3259 978 1908 352 657 . 2876 395 1290 352 689 2388 4652 4203 2955 Guns 17475 | 91 1027 . . 164 4135 937 327 251 562 1711 75 1923 3259 847 276 352 248 . 781 122 387 . . . . . . Cannons 8976 | . . 50 . 382 786 . . 27 177 . . . . 131 . . . . 552 238 . 352 . 1638 3352 1221 70 Explosions 6897 | . . . . . 1424 179 . 38 43 96 . 575 . . 63 . 409 . 420 35 276 . . . 1300 1054 985 Melee 13301 | . . . 1964 . . 382 . 307 217 1541 320 . . . 1569 . . . 1123 . 611 . 689 750 . 1928 1900 Ramming 27 | . . . . . . 11 . . . . . . . . . . . . . . 16 . . . . . . Kinetic 22658 | 91 1027 50 . 546 4669 830 327 251 562 1711 75 1737 3259 847 276 352 248 . 781 122 387 352 . 1638 2481 39 . Thermal 2309 | . . . . . 61 177 . 193 43 231 . 206 . . 43 . . . 420 35 . . . . 709 191 . Explosive 3653 | . . . . . 1046 . . . . . . . . . . . 409 . . . 276 . . . 591 346 985 Electromagnetic 5395 | . . . . . 569 228 . 65 177 96 . 679 . 131 20 . . . 552 238 . . . . 871 1699 70 Impact . | . . . . . . . . . . . . . . . . . . . . . . . . . . . . Slashing 13192 | . . . 1964 . . 382 . 307 217 1541 320 . . . 1460 . . . 1123 . 611 . 689 750 . 1928 1900 Piercing 109 | . . . . . . . . . . . . . . . 109 . . . . . . . . . . . . Highest Corruption 23 | . . . . . . . . . . 1 1 1 2 2 1 2 2 2 2 5 5 . 16 23 23 8 8 Average Corruption 5 | . . . . . . . . . . 1 1 1 1 1 1 1 2 2 2 4 4 . 10 18 23 3 6 Corruption Purged 11 | . . . . . . . . . . . . 1 . 2 . . . . . . 5 . . . . . 3 Effects 394 | . . . . . . . . . . 15 4 1 9 12 7 3 4 . 14 13 33 . 15 87 143 7 27 Message Errors 83 | . . . . . . . . . . 8 3 . 3 4 4 2 . . 5 2 10 . 5 13 19 1 4 Matter Fused 56 | . . . . . . . . . . . . . . . . . . . . 2 5 . 2 11 30 . 6 Heat Flow Errors 44 | . . . . . . . . . . . . . . 3 . 1 2 . 2 2 3 . . 12 9 3 7 Energy Discharges 36 | . . . . . . . . . . 2 . . 4 2 1 . 1 . 2 3 3 . 1 6 8 3 . Parts Rejected 7 | . . . . . . . . . . . . . . . . . . . . . . . 1 2 3 . 1 Data Loss (minor) 33 | . . . . . . . . . . 1 1 1 . 1 2 . 1 . 4 1 3 . . 8 8 . 2 Data Loss (major) 14 | . . . . . . . . . . . . . . . . . . . . . 1 . 2 2 7 . 2 Misfires 7 | . . . . . . . . . . . . . . . . . . . . 1 2 . . . 4 . . Alerts 3 | . . . . . . . . . . . . . . . . . . . . . . . . 3 . . . Misdirections 31 | . . . . . . . . . . . . . . . . . . . . . . . 2 11 18 . . Targeting Errors 72 | . . . . . . . . . . 4 . . 2 2 . . . . 1 2 5 . 2 17 32 . 5 Weapon Failures 8 | . . . . . . . . . . . . . . . . . . . . . 1 . . 2 5 . . Overload Shots . | . . . . . . . . . . . . . . . . . . . . . . . . . . . . Overflow Damage 2806 | . . . 344 . 51 . . 2 85 321 . 2 . . 446 . . . 314 7 . 11 . 298 242 337 346 Projectiles 221 | . . . . . 2 . . . 3 . . . . . . . . . . 7 . 11 . 85 113 . . Explosions 229 | . . . . . 49 . . . . . . 2 . . . . . . . . . . . . 129 44 5 Melee 2356 | . . . 344 . . . . 2 82 321 . . . . 446 . . . 314 . . . . 213 . 293 341 Knockbacks 33 | . . 2 . 2 7 . . . . . . . . . . . . . . . . 1 . 13 8 . . Impact . | . . . . . . . . . . . . . . . . . . . . . . . . . . . . Kinetic 33 | . . 2 . 2 7 . . . . . . . . . . . . . . . . 1 . 13 8 . . Secondary . | . . . . . . . . . . . . . . . . . . . . . . . . . . . . Self-Inflicted Damage 387 | . 15 . . . 49 . . . 31 23 . . . . 21 . . . 44 12 . . . . . 111 81 Shots 15 | . 1 . . . 1 . . . 1 1 . . . . 1 . . . 2 1 . . . . . 4 3 Rammed 2 | . . . . . . . . . . . . . . . . . . . . . 1 . . . . . 1 Targets Rammed 4 | . . . . . . 1 . . . . . . . . . . . . . . 2 . . . . . 1 Kicked . | . . . . . . . . . . . . . . . . . . . . . . . . . . . . Crushed 2 | . . . . . . 1 . . . . . . . . . . . . . . 1 . . . . . . Highest Temperature 410 | . 12 24 . 140 252 66 . 28 48 33 10 120 31 234 20 240 242 . 202 190 243 40 11 410 243 189 216 Average Temperature 39 | . 8 13 . 46 37 14 . 9 13 7 6 23 8 55 7 51 59 . 42 63 41 24 5 93 51 42 85 Received Heat Transfer 6017 | . 96 . . 54 1656 279 9 153 153 471 18 597 441 495 111 117 . . 63 9 187 . 36 84 231 484 273 Effects 5 | . . . . . . . . . . . . . . . . . 1 . . . . . . 4 . . . Shutdowns 1 | . . . . . . . . . . . . . . . . . . . . . . . . 1 . . . Interference 2 | . . . . . . . . . . . . . . . . . 1 . . . . . . 1 . . . Short Circuit 1 | . . . . . . . . . . . . . . . . . . . . . . . . 1 . . . Damage (minor) 1 | . . . . . . . . . . . . . . . . . . . . . . . . 1 . . . Siege Activations 2 | . . . . . . . . . . . . . . . . . . . . . . . . . 2 . . Total Turns 55 | . . . . . . . . . . . . . . . . . . . . . . . . . 55 . . Longest Duration 38 | . . . . . . . . . . . . . . . . . . . . . . . . . 38 . . Robots Corrupted 17 | . . . . . 2 1 . . 1 . . 2 . 1 . . . . 1 . . . . . 1 8 . Combat Hostiles 15 | . . . . . 2 1 . . . . . 1 . 1 . . . . 1 . . . . . 1 8 . Parts Fried 28 | . . . . . 4 1 . . 1 . . 3 . 1 . . . . . . . . . . 5 13 . Impact Corruptions . | . . . . . . . . . . . . . . . . . . . . . . . . . . . . Robots Melted . | . . . . . . . . . . . . . . . . . . . . . . . . . . . . Combat Hostiles . | . . . . . . . . . . . . . . . . . . . . . . . . . . . . Parts Melted 4 | . . . . . . . . 2 . . . . . . . . 1 . . . . . . . 1 . . Heat Transferred 3871 | . . . . . 50 457 . 629 50 678 . 607 . . 50 . . . 650 50 . . . . 500 150 . Parts Sabotaged 6 | . . . . . . . . . . . . . 4 . . . . . . . . . . . . 2 . Parts Stolen . | . . . . . . . . . . . . . . . . . . . . . . . . . . . . Parts Stripped . | . . . . . . . . . . . . . . . . . . . . . . . . . . . . Power Chain Reactions 11 | . . . . . 1 2 . . 1 . . 1 . . 1 . . . 3 1 . . . . . 1 . Missiles Intercepted . | . . . . . . . . . . . . . . . . . . . . . . . . . . . . Alert | -11 -10 -10 -10 -9 -8 -8 -8 -8 -7 -7 -7 -7 -6 -6 -6 -6 -6 -6 -5 -5 -5 -4 -4 -4 -4 -3 -3 ------- Run | Scr Mat Min Exi Min Mat Gar Mat Gar Fac Gar Fac Gar Fac Gar Fac Low Low Dat Pro Fac Gar Fac Was Fac Ext Res Qua Peak Influence 1345 | 10 217 45 . 184 841 1326 817 1100 688 1345 1182 1322 802 882 933 . . . . 443 895 711 419 308 820 1050 444 Average Influence 668 | 5 83 43 . 134 515 1054 724 954 576 1160 748 976 531 749 476 . . . . 218 726 531 322 106 270 661 311 Maximum Alert Level 4 | . 1 . . . 3 4 3 4 2 4 4 4 3 3 3 . . . . 2 3 3 2 1 3 3 2 Low Security (%) 14 | 100 96 100 . 100 10 . . . . . . . . . . . . . . 28 . . . 88 44 . 10 Level 1 11 | . 3 . . . 23 . . . . . . . 17 . 37 . . . . 71 6 2 97 11 22 18 65 Level 2 26 | . . . . . 45 8 49 9 100 9 45 9 78 26 50 . . . . . 14 81 2 . 23 32 24 Level 3 29 | . . . . . 21 43 50 63 . 15 47 50 3 73 11 . . . . . 79 15 . . 9 49 . Level 4 17 | . . . . . . 47 . 26 . 74 6 40 . . . . . . . . . . . . . . . Level 5 . | . . . . . . . . . . . . . . . . . . . . . . . . . . . . High Security . | . . . . . . . . . . . . . . . . . . . . . . . . . . . . Max Security . | . . . . . . . . . . . . . . . . . . . . . . . . . . . . Squads Dispatched 78 | . 3 . . . 10 . 2 . 11 . 7 . 7 . 6 . . . . 5 . 1 . 3 7 9 7 Investigation 16 | . 1 . . . 1 . 1 . 3 . 1 . 1 . 3 . . . . . . . . . . 3 2 Extermination 12 | . . . . . . . . . 2 . 1 . 3 . 1 . . . . 1 . . . 1 . 2 1 Reinforcement 24 | . 2 . . . 5 . . . 2 . 1 . 2 . . . . . . 1 . . . 2 5 . 4 Assault 12 | . . . . . 2 . . . . . 1 . 1 . 1 . . . . . . 1 . . 2 4 . Garrison 14 | . . . . . 2 . 1 . 4 . 3 . . . 1 . . . . 3 . . . . . . . Intercept . | . . . . . . . . . . . . . . . . . . . . . . . . . . . . Construction Impeded 2 | . . . . . 2 . . . . . . . . . . . . . . . . . . . . . . Haulers Reinforced 5 | . . . . . . . . . 2 . . . 1 . . . . . . 1 . . . 1 . . . Alert ID Control Effect 19 | . . . . . . . . . . . . . . . . . . . . . 2 2 . 6 8 1 . Stealth | -11 -10 -10 -10 -9 -8 -8 -8 -8 -7 -7 -7 -7 -6 -6 -6 -6 -6 -6 -5 -5 -5 -4 -4 -4 -4 -3 -3 --------- Run | Scr Mat Min Exi Min Mat Gar Mat Gar Fac Gar Fac Gar Fac Gar Fac Low Low Dat Pro Fac Gar Fac Was Fac Ext Res Qua Distress Signals 70 | . 5 . . . 8 . . . . . . 1 . . 2 . . . 41 . . . . . 9 1 3 Communications Jammed 128 | . . . . . . . . . 2 . . . . . . . . . . . . 1 . 4 89 32 . Distress Signals 116 | . . . . . . . . . . . . . . . . . . . . . . 1 . 4 89 22 . Times Spotted 717 | . 37 . . 14 91 25 5 26 15 43 4 41 57 26 23 5 13 . 25 12 32 3 3 27 69 66 55 Peak Tracking Total 12 | . 6 . . 3 6 3 2 3 4 5 2 6 5 4 4 3 8 . 6 3 7 2 2 6 6 12 9 Tactical Retreats 56 | . 3 . . 1 5 2 . 1 . 3 . 3 8 . 1 . . . . . 5 . . 1 3 11 9 Traps | -11 -10 -10 -10 -9 -8 -8 -8 -8 -7 -7 -7 -7 -6 -6 -6 -6 -6 -6 -5 -5 -5 -4 -4 -4 -4 -3 -3 ------- Run | Scr Mat Min Exi Min Mat Gar Mat Gar Fac Gar Fac Gar Fac Gar Fac Low Low Dat Pro Fac Gar Fac Was Fac Ext Res Qua Traps Triggered 59 | . 3 . . . 2 6 . 9 1 9 . 7 . 7 2 . . . 2 2 2 1 . 1 . 4 1 Indirectly 5 | . . . . . 2 . . . . . . . . . 1 . . . . . . . . . . 2 . Trap Hack Attempts . | . . . . . . . . . . . . . . . . . . . . . . . . . . . . Triggered . | . . . . . . . . . . . . . . . . . . . . . . . . . . . . Disarmed . | . . . . . . . . . . . . . . . . . . . . . . . . . . . . Reprogrammed . | . . . . . . . . . . . . . . . . . . . . . . . . . . . . Reused . | . . . . . . . . . . . . . . . . . . . . . . . . . . . . Traps Extracted . | . . . . . . . . . . . . . . . . . . . . . . . . . . . . Installed . | . . . . . . . . . . . . . . . . . . . . . . . . . . . . Triggered 3 | . . . . . . . . . . . . . . . . . . . . . . . . . . 3 . Machines | -11 -10 -10 -10 -9 -8 -8 -8 -8 -7 -7 -7 -7 -6 -6 -6 -6 -6 -6 -5 -5 -5 -4 -4 -4 -4 -3 -3 ---------- Run | Scr Mat Min Exi Min Mat Gar Mat Gar Fac Gar Fac Gar Fac Gar Fac Low Low Dat Pro Fac Gar Fac Was Fac Ext Res Qua Machines Disabled 89 | . . . . 8 6 3 . 4 . 5 . 4 5 5 2 . . . 7 9 5 13 . . 6 2 5 Max in Single Turn 2 | . . . . 2 2 1 . 1 . 1 . 1 1 1 . . . . 1 1 1 . . . 2 1 1 Garrison Access 8 | . . . . . . . . . . . 1 . . . 3 . . . . . . . . 1 . 2 1 Garrison Relay 24 | . . . . . . 3 . 4 . 5 . 4 . 4 . . . . . . 4 . . . . . . Energy Cycler 2 | . . . . . . . . . . . . . . . . . . . . . . . . . 2 . . Machines Sabotaged 1 | . . . . . . . . . . . . . . . . . . . . . . . . . . . 1 Garrisons Compromised . | . . . . . . . . . . . . . . . . . . . . . . . . . . . . Overloaded Fab Kills . | . . . . . . . . . . . . . . . . . . . . . . . . . . . . Fab Network Shutdowns 2 | . . . . . . . . . . . 1 . 1 . . . . . . . . . . . . . . Hacking | -11 -10 -10 -10 -9 -8 -8 -8 -8 -7 -7 -7 -7 -6 -6 -6 -6 -6 -6 -5 -5 -5 -4 -4 -4 -4 -3 -3 --------- Run | Scr Mat Min Exi Min Mat Gar Mat Gar Fac Gar Fac Gar Fac Gar Fac Low Low Dat Pro Fac Gar Fac Was Fac Ext Res Qua Machines Accessed 74 | . 4 . 2 . 5 . 1 . 2 . 6 . 6 . 10 . . 4 . 3 . 1 . 5 8 10 7 Terminals 38 | . 3 . . . 3 . . . . . 1 . 4 . 5 . . . . 2 . 1 . 2 8 3 6 Fabricators 7 | . . . . . . . . . . . 1 . 1 . 2 . . . . . . . . 1 . 2 . Repair Stations 4 | . . . . . . . . . . . 1 . . . . . . . . . . . . 1 . 2 . Recycling Units 2 | . 1 . . . 1 . . . . . . . . . . . . . . . . . . . . . . Scanalyzers 2 | . . . . . . . . . . . 1 . . . . . . . . . . . . . . 1 . Garrison Access 15 | . . . . . 1 . 1 . 2 . 2 . 1 . 3 . . . . 1 . . . 1 . 2 1 Total Hacks 229 | . 15 . 5 . 11 . 3 . 7 . 24 . 13 . 32 . . 25 . 10 . 2 . 13 25 30 14 Successful 133 | . 9 . 5 . 7 . 3 . 5 . 14 . 9 . 14 . . 25 . 4 . 1 . 4 15 13 5 Failed 96 | . 6 . . . 4 . . . 2 . 10 . 4 . 18 . . . . 6 . 1 . 9 10 17 9 Catastrophic 18 | . . . . . 1 . . . 1 . 3 . . . 3 . . . . 1 . 1 . 3 1 1 3 Database Lockouts . | . . . . . . . . . . . . . . . . . . . . . . . . . . . . Manual 118 | . 8 . 1 . 9 . 2 . 5 . 11 . 4 . 16 . . . . 8 . 1 . 9 22 14 8 Terminals 117 | . 13 . . . 7 . . . . . 7 . 8 . 16 . . . . 9 . 2 . 7 25 11 12 Fabricators 25 | . . . . . . . . . . . 5 . 3 . 10 . . . . . . . . 1 . 6 . Repair Stations 7 | . . . . . . . . . . . 2 . . . . . . . . . . . . 2 . 3 . Recycling Units 3 | . 2 . . . 1 . . . . . . . . . . . . . . . . . . . . . . Scanalyzers 8 | . . . . . . . . . . . 5 . . . . . . . . . . . . . . 3 . Garrison Access 39 | . . . . . 3 . 3 . 7 . 5 . 2 . 6 . . . . 1 . . . 3 . 7 2 Terminal Hacks 65 | . 6 . 5 . 2 . . . . . 3 . 4 . 3 . . 25 . 1 . 1 . 2 7 3 3 Record 15 | . . . 4 . . . . . . . . . . . . . . 11 . . . . . . . . . Part Schematic 7 | . . . . . . . . . . . . . . . . . . 7 . . . . . . . . . Robot Schematic 5 | . . . . . . . . . . . . . 1 . . . . 4 . . . . . . . . . Robot Analysis 2 | . 2 . . . . . . . . . . . . . . . . . . . . . . . . . . Prototype ID Bank 6 | . 1 . . . . . . . . . . . . . . . . 3 . . . . . . 1 . 1 Branch Access Points 3 | . . . . . . . . . . . . . . . . . . . . . . . . 1 . 1 1 Terminal Index 1 | . . . . . . . . . . . . . . . 1 . . . . . . . . . . . . Fabricator Index 1 | . . . . . . . . . . . . . . . . . . . . . . 1 . . . . . Garrison Index 1 | . . . . . . . . . . . . . 1 . . . . . . . . . . . . . . Unreport Threat 10 | . . . . . 1 . . . . . 2 . . . . . . . . 1 . . . 1 2 2 1 Locate Traps 3 | . . . . . . . . . . . 1 . . . 1 . . . . . . . . . 1 . . Transport Status 1 | . 1 . . . . . . . . . . . . . . . . . . . . . . . . . . Hauler Manifests 3 | . 1 . . . . . . . . . . . 1 . 1 . . . . . . . . . . . . Registered Components 1 | . 1 . . . . . . . . . . . . . . . . . . . . . . . . . . Zone Layout 5 | . . . . . 1 . . . . . . . 1 . . . . . . . . . . . 3 . . EX-Prototype ID Bank 1 | . . . 1 . . . . . . . . . . . . . . . . . . . . . . . . Fabricator Hacks 10 | . . . . . . . . . . . 2 . 2 . 4 . . . . . . . . . . 2 . Load Schematic 5 | . . . . . . . . . . . 1 . 1 . 2 . . . . . . . . . . 1 . Build 5 | . . . . . . . . . . . 1 . 1 . 2 . . . . . . . . . . 1 . Repair Station Hacks 1 | . . . . . . . . . . . . . . . . . . . . . . . . 1 . . . Scan Component 1 | . . . . . . . . . . . . . . . . . . . . . . . . 1 . . . Recycling Unit Hacks 2 | . 1 . . . 1 . . . . . . . . . . . . . . . . . . . . . . Retrieve Components 2 | . 1 . . . 1 . . . . . . . . . . . . . . . . . . . . . . Scanalyzer 6 | . . . . . . . . . . . 4 . . . . . . . . . . . . . . 2 . Insert Component 3 | . . . . . . . . . . . 2 . . . . . . . . . . . . . . 1 . Analyze 3 | . . . . . . . . . . . 2 . . . . . . . . . . . . . . 1 . Garrison Access Hacks 16 | . . . . . 1 . 1 . 2 . 3 . 1 . 2 . . . . 1 . . . 1 . 3 1 Unlock Access 6 | . . . . . 1 . 1 . 1 . 1 . 1 . . . . . . 1 . . . . . . . Seal Access 6 | . . . . . . . . . . . 1 . . . 2 . . . . . . . . 1 . 1 1 Coupler Status 4 | . . . . . . . . . 1 . 1 . . . . . . . . . . . . . . 2 . Unauthorized Hacks 33 | . 2 . . . 3 . 2 . 3 . 2 . 2 . 5 . . . . 2 . . . . 8 3 1 Terminals 17 | . 2 . . . 1 . . . . . . . . . 2 . . . . 2 . . . . 8 1 1 Track 4 | . 1 . . . . . . . . . . . . . . . . . . . . . . . 3 . . Assimilate 1 | . . . . . 1 . . . . . . . . . . . . . . . . . . . . . . Botnet 7 | . 1 . . . . . . . . . . . . . 1 . . . . 2 . . . . 3 . . Disrupt 3 | . . . . . . . . . . . . . . . . . . . . . . . . . 2 1 . Sabotage 1 | . . . . . . . . . . . . . . . . . . . . . . . . . . . 1 Search 1 | . . . . . . . . . . . . . . . 1 . . . . . . . . . . . . Fabricators 2 | . . . . . . . . . . . . . 1 . 1 . . . . . . . . . . . . Prioritize 1 | . . . . . . . . . . . . . . . 1 . . . . . . . . . . . . Haulers 1 | . . . . . . . . . . . . . 1 . . . . . . . . . . . . . . Repair Stations . | . . . . . . . . . . . . . . . . . . . . . . . . . . . . Recycling Units . | . . . . . . . . . . . . . . . . . . . . . . . . . . . . Scanalyzers . | . . . . . . . . . . . . . . . . . . . . . . . . . . . . Garrison Access 14 | . . . . . 2 . 2 . 3 . 2 . 1 . 2 . . . . . . . . . . 2 . Restock 3 | . . . . . 1 . 1 . 1 . . . . . . . . . . . . . . . . . . Reprogram 6 | . . . . . . . . . 1 . 2 . . . 2 . . . . . . . . . . 1 . Eject 5 | . . . . . 1 . 1 . 1 . . . 1 . . . . . . . . . . . . 1 . Data Cores Recovered . | . . . . . . . . . . . . . . . . . . . . . . . . . . . . Used . | . . . . . . . . . . . . . . . . . . . . . . . . . . . . Hacking Detections 60 | . 3 . . . 4 . . . 2 . 6 . 6 . 8 . . . . 2 . 1 . 5 8 9 6 Full Trace Events 7 | . . . . . 1 . . . 1 . 1 . . . 2 . . . . . . . . . . 2 . Feedback Events . | . . . . . . . . . . . . . . . . . . . . . . . . . . . . Feedback Blocked . | . . . . . . . . . . . . . . . . . . . . . . . . . . . . Robot Schematics Acquired 5 | . . . . . . . . . . . . . 1 . . . . 4 . . . . . . . . . Robots Built 1 | . . . . . . . . . . . . . . . 1 . . . . . . . . . . . . Matter 219 | . . . . . . . . . . . . . . . 219 . . . . . . . . . . . . Time 116 | . . . . . . . . . . . . . . . 116 . . . . . . . . . . . . Total Robot Build Rating 3 | . . . . . . . . . . . . . . . 3 . . . . . . . . . . . . Part Schematics Acquired 10 | . . . . . . . . . . . 2 . . . . . . 7 . . . . . . . 1 . Parts Built 7 | . . . . . . . . . . . 2 . 2 . 1 . . . . . . . . . . 2 . Matter 760 | . . . . . . . . . . . 190 . 190 . 168 . . . . . . . . . . 212 . Time 237 | . . . . . . . . . . . 47 . 95 . 42 . . . . . . . . . . 53 . Total Part Build Rating 36 | . . . . . . . . . . . 10 . 10 . 4 . . . . . . . . . . 12 . Parts Repaired . | . . . . . . . . . . . . . . . . . . . . . . . . . . . . Time . | . . . . . . . . . . . . . . . . . . . . . . . . . . . . Parts Recycled . | . . . . . . . . . . . . . . . . . . . . . . . . . . . . Recycled Matter . | . . . . . . . . . . . . . . . . . . . . . . . . . . . . Retrieved Matter . | . . . . . . . . . . . . . . . . . . . . . . . . . . . . Retrieved Components 9 | . 2 . . . 7 . . . . . . . . . . . . . . . . . . . . . . Parts Scanalyzed 3 | . . . . . . . . . . . 2 . . . . . . . . . . . . . . 1 . Part Schematics Acquired 3 | . . . . . . . . . . . 2 . . . . . . . . . . . . . . 1 . Parts Damaged . | . . . . . . . . . . . . . . . . . . . . . . . . . . . . Bothacking | -11 -10 -10 -10 -9 -8 -8 -8 -8 -7 -7 -7 -7 -6 -6 -6 -6 -6 -6 -5 -5 -5 -4 -4 -4 -4 -3 -3 ------------ Run | Scr Mat Min Exi Min Mat Gar Mat Gar Fac Gar Fac Gar Fac Gar Fac Low Low Dat Pro Fac Gar Fac Was Fac Ext Res Qua Used RIF Installer 6 | . . . . . . 1 . 1 . 1 . 1 . 1 . . . . . . 1 . . . . . . Coupler Efficiency 1 | . . . . . . . . 1 . . . . . . . . . . . . . . . . . . . Alert ID Control 1 | . . . . . . . . . . . . . . . . . . . . . 1 . . . . . . Structural Interface 1 | . . . . . . . . . . . . . . 1 . . . . . . . . . . . . . Program Shield 1 | . . . . . . . . . . 1 . . . . . . . . . . . . . . . . . Autooverride 1 | . . . . . . . . . . . . 1 . . . . . . . . . . . . . . . Robots Hacked 133 | . . . . . . 5 . 10 6 10 4 5 20 10 6 . . . 5 3 14 . 5 12 11 6 1 Non-combat 20 | . . . . . . . . . . . 3 . 6 . 2 . . . 1 1 . . . 2 1 4 . Combat 113 | . . . . . . 5 . 10 6 10 1 5 14 10 4 . . . 4 2 14 . 5 10 10 2 1 Autooverrided 10 | . . . . . . . . . . . . . 4 . . . . . . 1 1 . . 2 1 . 1 Robot Hacks Applied 141 | . . . . . . 5 . 10 6 10 6 5 23 10 7 . . . 5 2 13 . 5 13 14 7 . parse_system 5 | . . . . . . . . . . . . . . . . . . . 2 . . . . . 3 . . find_chute 1 | . . . . . . . . . . . . . 1 . . . . . . . . . . . . . . ignore_repairs 5 | . . . . . . . . . . . . . . . . . . . . . . . . . . 5 . find_fabricator 1 | . . . . . . . . . . . 1 . . . . . . . . . . . . . . . . drop_inventory 6 | . . . . . . . . . . . 2 . 3 . . . . . . . . . . 1 . . . purge_threat 12 | . . . . . . . . . . . 2 . 4 . 1 . . . . . . . . 1 4 . . map_route 2 | . . . . . . . . . . . . . 1 . 1 . . . . . . . . . . . . ignore_targets 5 | . . . . . . . . . . . . . . . . . . . . . . . 5 . . . . find_garrison 3 | . . . . . . . . . . . . . 1 . . . . . . . . . . 1 . 1 . spike_heat 3 | . . . . . . . . 1 . . . . . . 1 . . . . . . . . 1 . . . overload_power 1 | . . . . . . . . . . . . . . . . . . . . . . . . 1 . . . wipe_record 2 | . . . . . . . . . . . . . . . . . . . . . . . . 1 . 1 . reboot_system 11 | . . . . . . . . . . 1 1 2 1 . . . . . 2 . 3 . . 1 . . . overwrite_iff 8 | . . . . . . . . . . . . . 5 . . . . . . . 2 . . 1 . . . streamctrl_high 1 | . . . . . . . . . . . . . 1 . . . . . . . . . . . . . . formatsys_low 3 | . . . . . . . . . . . . . 1 . 1 . . . . 1 . . . . . . . formatsys_high 72 | . . . . . . 5 . 9 6 9 . 3 5 10 3 . . . 1 1 8 . . 5 7 . . Relay Couplers Released 134 | . . . . . 7 9 7 18 8 18 1 17 4 16 5 . . . . . 16 . . 3 . 5 . Ejected 18 | . . . . . 3 . 4 . 4 . . . 4 . . . . . . . . . . . . 3 . Machine Destruction 105 | . . . . . . 9 . 18 . 18 1 17 . 16 5 . . . . . 16 . . 3 . 2 . Programmers 11 | . . . . . 4 . 3 . 4 . . . . . . . . . . . . . . . . . . Attached 58 | . . . . . . 4 . 6 4 4 2 2 7 8 3 . . . 1 1 7 2 . 2 4 1 . Robots Rewired 35 | . . . 2 . . . . 3 . 9 . . . . . . . . 2 . . . . . 19 . . Allies Hacked 1 | . . . . . . . . . 1 . . . . . . . . . . . . . . . . . . Hacks Repelled . | . . . . . . . . . . . . . . . . . . . . . . . . . . . . Allies | -11 -10 -10 -10 -9 -8 -8 -8 -8 -7 -7 -7 -7 -6 -6 -6 -6 -6 -6 -5 -5 -5 -4 -4 -4 -4 -3 -3 -------- Run | Scr Mat Min Exi Min Mat Gar Mat Gar Fac Gar Fac Gar Fac Gar Fac Low Low Dat Pro Fac Gar Fac Was Fac Ext Res Qua Total Allies 156 | . . . 2 . . 5 . 12 7 18 5 3 14 10 10 . . . 4 3 11 . . 8 34 2 8 Largest Group 15 | . . . 2 1 1 5 5 7 6 14 15 2 3 6 9 9 9 8 9 4 5 5 5 3 10 5 4 Highest-Rated Group 498 | . . . 29 21 21 78 78 189 154 277 350 64 78 204 267 238 238 218 312 164 185 185 185 141 498 189 56 Highest-Rated Ally 156 | . . . 21 21 21 16 16 38 38 32 38 34 32 41 47 32 32 32 94 49 49 49 49 56 156 56 56 Total Orders 63 | . . . . . . . . 1 1 6 7 . 2 4 7 4 5 . 9 7 4 2 . 3 1 . . STAY 12 | . . . . . . . . . 1 3 2 . 1 . . . . . 2 1 . 1 . . 1 . . GOTO 21 | . . . . . . . . 1 . . 3 . . 2 3 . 1 . 5 2 2 . . 2 . . . ROAM 2 | . . . . . . . . . . . . . . 1 . . . . . 1 . . . . . . . FOLLOW 17 | . . . . . . . . . . 3 2 . 1 1 3 . 1 . 2 1 1 1 . 1 . . . GUARD 1 | . . . . . . . . . . . . . . . . . . . . . 1 . . . . . . AID 10 | . . . . . . . . . . . . . . . 1 4 3 . . 2 . . . . . . . Ally Attacks 1271 | . . . . 27 . 27 33 84 41 53 56 30 65 30 135 29 34 . 66 31 46 38 145 39 232 22 8 Total Damage 34061 | . . . . 741 . 386 395 1462 1060 1146 1053 1062 1349 1687 2848 522 420 . 1579 2169 1704 761 3518 1127 8113 754 205 Kills 228 | . . . . 11 . 4 4 12 12 12 11 13 9 9 27 5 5 . 12 9 6 3 5 6 50 3 . Allies Corrupted 7 | . . . . . . . . . 1 . . . . . . . . . . . . . 5 . . 1 . Allies Melted . | . . . . . . . . . . . . . . . . . . . . . . . . . . . . Intel | -11 -10 -10 -10 -9 -8 -8 -8 -8 -7 -7 -7 -7 -6 -6 -6 -6 -6 -6 -5 -5 -5 -4 -4 -4 -4 -3 -3 ------- Run | Scr Mat Min Exi Min Mat Gar Mat Gar Fac Gar Fac Gar Fac Gar Fac Low Low Dat Pro Fac Gar Fac Was Fac Ext Res Qua Robot Analysis Total 2 | . 2 . . . . . . . . . . . . . . . . . . . . . . . . . . Derelict Logs Recovered 6 | . . 1 . . . . . . . . . . . . . 2 2 . 1 . . . . . . . . Drone Launches . | . . . . . . . . . . . . . . . . . . . . . . . . . . . . Drone Recoveries . | . . . . . . . . . . . . . . . . . . . . . . . . . . . . Exploration | -11 -10 -10 -10 -9 -8 -8 -8 -8 -7 -7 -7 -7 -6 -6 -6 -6 -6 -6 -5 -5 -5 -4 -4 -4 -4 -3 -3 ------------- Run | Scr Mat Min Exi Min Mat Gar Mat Gar Fac Gar Fac Gar Fac Gar Fac Low Low Dat Pro Fac Gar Fac Was Fac Ext Res Qua Turns Passed 37402 | 91 1295 102 1146 787 2523 2119 355 2558 1152 3983 889 2488 2018 1759 1713 571 540 113 1989 545 2310 601 389 1314 1825 1352 875 Spaces Moved 20152 | 42 554 54 604 343 956 945 154 1290 611 1919 580 1380 973 825 1136 347 320 78 1351 311 859 365 179 660 867 1477 972 Core 146 | 5 . . . . 2 . . . . . . . . . . . . . 25 . . . . . . . 114 Treads 7246 | 37 553 54 604 343 767 945 152 . . 9 . . 333 825 53 . . . . 104 859 121 . 620 867 . . Legs 187 | . . . . . 187 . . . . . . . . . . . . . . . . . . . . . . Wheels 10238 | . 1 . . . . . 2 1290 611 1910 580 1380 640 . 1083 347 320 78 1326 207 . 244 179 40 . . . Hover 1862 | . . . . . . . . . . . . . . . . . . . . . . . . . . 1477 385 Flight 473 | . . . . . . . . . . . . . . . . . . . . . . . . . . . 473 Fastest Speed 32 | 50 120 180 180 180 120 180 170 160 130 130 120 130 120 180 110 110 120 120 50 115 160 140 130 140 160 52 32 Average Speed 143 | 148 177 180 180 196 185 180 179 170 158 168 129 139 150 184 128 119 120 120 113 143 160 146 143 161 161 53 55 Slowest Speed 450 | 160 180 180 180 200 450 200 180 180 190 260 140 180 200 260 180 120 120 120 350 160 160 160 150 180 180 114 150 Overloaded Moves . | . . . . . . . . . . . . . . . . . . . . . . . . . . . . Propulsion Burnouts . | . . . . . . . . . . . . . . . . . . . . . . . . . . . . Robots Hopped 2 | . . . . . . . . . . . . . . . . . . . . . . . . . . . 2 Cave-ins Triggered 1 | . . . . . . . . . . . . . . . . . . . . . . . . . . . 1 Teleports 2 | . . . . . . . . . . . . . . . . . . . . . . . . . . . 2 Exploration Rate (%) 55 | 3 65 17 90 79 50 85 15 96 10 97 11 83 22 98 35 58 51 73 82 12 98 9 78 14 95 34 85 Regions Visited 27 Branch Regions 9 Pre-discovered Areas 4 | . . 1 1 . . . . . . . . . . . . . 1 1 . . . . . . . . . Known Exits Taken 9 | . . . . . 1 . 1 . 1 . 1 . 1 . . 1 . . . 1 . . . 1 . 1 . Unknown Exits Taken 10 | 1 1 1 1 1 . . . . . . . . . . 1 . 1 1 1 . . . . . 1 . . Scrap Searched 11 | . . . . . . . . . . . . . . . . 4 3 . 4 . . . . . . . . Spaces Dug 148 | . 6 . . . . 7 . 3 . . 2 1 9 . 4 . . . 9 17 . . . 24 . 19 47 Terrain Destroyed 473 | . 6 . . 7 68 16 . 3 1 . 2 3 11 2 5 . 11 . 9 51 9 1 3 40 80 42 103 Melee 73 | . . . . . . . . 3 . . 2 . 9 . 4 . . . 9 . . . . 7 . 19 20 Projectile 74 | . . . . 7 13 2 . . . . . 1 2 2 . . . . . . 1 1 3 16 22 . 4 AOE 326 | . 6 . . . 55 14 . . 1 . . 2 . . 1 . 11 . . 51 8 . . 17 58 23 79 Actions | -11 -10 -10 -10 -9 -8 -8 -8 -8 -7 -7 -7 -7 -6 -6 -6 -6 -6 -6 -5 -5 -5 -4 -4 -4 -4 -3 -3 --------- Run | Scr Mat Min Exi Min Mat Gar Mat Gar Fac Gar Fac Gar Fac Gar Fac Low Low Dat Pro Fac Gar Fac Was Fac Ext Res Qua Total 26017 | 59 719 55 647 412 1375 1257 211 1527 746 2426 695 1746 1300 974 1318 483 457 97 1641 378 1730 427 293 828 1159 1884 1173 Wait 2313 | . 4 . 7 29 49 185 31 19 14 163 48 157 73 10 72 120 119 20 22 4 740 33 68 42 80 135 69 Move 20123 | 41 553 53 603 342 955 944 153 1289 610 1918 579 1379 972 824 1135 346 319 77 1350 310 858 365 178 659 866 1476 969 Hop 1 | . . . . . . . . . . . . . . . . . . . . . . . . . . . 1 Pick Up 371 | 7 26 . 7 5 61 11 2 27 17 22 10 13 21 15 5 1 1 . 37 6 19 4 7 10 6 21 10 Fast Attach 175 | 7 4 . . . 17 2 2 1 5 5 3 4 6 4 10 . . . 16 8 5 2 4 7 11 27 25 Attach 151 | . 1 . . 2 21 6 2 5 6 13 2 8 11 11 . . . . 4 4 9 2 3 10 6 18 7 Detach 17 | . 1 . . . 2 . . . 2 1 . . 1 1 2 . . . . . 1 . . . 2 3 1 Swap 408 | . 16 . 4 3 26 18 4 31 20 33 14 29 49 18 22 3 6 . 22 7 16 4 2 10 20 28 3 Drop 406 | . 24 . 7 5 42 12 6 22 21 22 13 11 24 11 15 2 2 . 31 11 21 7 12 14 14 44 13 Fire 1549 | 4 90 2 . 26 202 67 11 73 46 164 11 113 133 66 32 11 10 . 120 28 52 10 7 62 130 63 16 Melee 306 | . . . 19 . . 5 . 20 4 23 15 . 10 2 25 . . . 23 . 7 . 12 14 . 69 58 Ram 1 | . . . . . . . . . . . . . . . . . . . . . . . . . . . 1 Kick . | . . . . . . . . . . . . . . . . . . . . . . . . . . . . Crush 3 | . . . . . . 1 . . . . . . . . . . . . . . 2 . . . . . . Escape Stasis 168 | . . . . . . 6 . 40 . 62 . 32 . 12 . . . . 16 . . . . . . . . Rewire 25 | . . . . . . . . . 1 . . . . . . . . . . . . . . . 24 . . Trap . | . . . . . . . . . . . . . . . . . . . . . . . . . . . . Miscellaneous . | . . . . . . . . . . . . . . . . . . . . . . . . . . . . Route ------- -11/Scrapyard -10/Materials (discovered 2 exits: [*Mat] / [*Min]) -10/Mines -10/Exiles (discovered 2 exits: [*Min x2]) -9/Mines -8/Materials (discovered 3 exits: *Fac x2 / Gar) -8/Garrison (discovered 3 exits: *Mat x3) -8/Materials -8/Garrison (discovered 3 exits: *Fac x3) -7/Factory (discovered 2 exits: [*Low] / Gar) -7/Garrison (discovered 3 exits: *Fac x3) -7/Factory -7/Garrison (discovered 3 exits: *Fac x3) -6/Factory -6/Garrison (discovered 3 exits: *Fac x3) -6/Factory -6/Lower Caves -6/Lower Caves -6/Data Miner -5/Proximity Caves -5/Factory (discovered 3 exits: Upp x2 / Gar) -5/Garrison (discovered 3 exits: *Fac x3) -4/Factory -4/Waste -4/Factory (discovered 5 exits: Upp x2 / *Ext x2 / Arm) -4/Extension (discovered 3 exits: *Res x2 / [*Cet]) -3/Research (discovered 3 exits: *Res / *Qua x2) -3/Quarantine History --------- Turn | Location | Event 31 | -11/Scrapyard | Discovered new exit (range 16) 92 | -11/Scrapyard | Entered Materials 312 | -10/Materials | Build established: Mutant 783 | -10/Materials | Discovered new exit (range 13) 801 | -10/Materials | Build established: Hauler-Mutant 1320 | -10/Materials | Discovered new exit (range 9) 1387 | -10/Materials | Entered Mines 1460 | -10/Mines | Learned location of Storage (-8) 1480 | -10/Mines | Deemed a non-threat by the Exiles lab entrance 1480 | -10/Mines | Discovered new exit (range 5) 1489 | -10/Mines | Entered Exiles 1489 | -10/Exiles | Found Exiles lab destroyed 2111 | -10/Exiles | Opened EX-Vault 2125 | -10/Exiles | Found Superbattery 2280 | -10/Exiles | Discovered new exit (range 14) 2483 | -10/Exiles | Learned location of Zion (-7) 2597 | -10/Exiles | Discovered new exit (range 11) 2635 | -10/Exiles | Entered Mines 2635 | -9/Mines | Accompanied by 2 allies 2690 | -9/Mines | Assembled infested the area 2695 | -9/Mines | Assisted by a Guerilla fighting off Assembled 3294 | -9/Mines | Discovered new exit (range 10) 3422 | -9/Mines | Entered Materials 3422 | -8/Materials | Accompanied by 1 ally 3422 | -8/Materials | Evolved 4 slots: Propulsion x1, Utility x3 3767 | -8/Materials | Garrison activated, responded to threat 3852 | -8/Materials | Lost 3 parts (1n1u1w) 3946 | -8/Materials | Lost 5 parts (1p2u2w) 4519 | -8/Materials | Discovered new exit (range 15) 4622 | -8/Materials | First assault squad dispatched 4882 | -8/Materials | Lost 6 parts (1p3n2w) 4942 | -8/Materials | Core integrity fell below 50% 5333 | -8/Materials | Discovered new exit (range 15) 5835 | -8/Materials | Identified exit to Garrison 5850 | -8/Materials | Garrison activated, responded to threat 5945 | -8/Materials | Entered Garrison 5986 | -8/Garrison | Triggered checkpoint 6102 | -8/Garrison | Triggered checkpoint 6126 | -8/Garrison | Triggered checkpoint 6185 | -8/Garrison | Discovered new exit (range 15) 6472 | -8/Garrison | Discovered new exit (range 10) 6596 | -8/Garrison | Triggered checkpoint 6733 | -8/Garrison | Discovered new exit (range 9) 6758 | -8/Garrison | Installed Relay Interface Framework 7052 | -8/Garrison | Triggered checkpoint 7053 | -8/Garrison | Garrison Relay disabled 7299 | -8/Garrison | Triggered checkpoint 7458 | -8/Garrison | Triggered checkpoint 7496 | -8/Garrison | Garrison Relay disabled 7776 | -8/Garrison | Garrison Relay disabled 8064 | -8/Garrison | Entered Materials 8064 | -8/Materials | Accompanied by 5 allies 8145 | -8/Materials | Garrison activated, responded to threat 8301 | -8/Materials | Identified exit to Garrison 8419 | -8/Materials | Entered Garrison 8419 | -8/Garrison | Accompanied by 2 allies 8428 | -8/Garrison | Expanded RIF knowledge: Coupler Efficiency 8532 | -8/Garrison | Triggered checkpoint 8559 | -8/Garrison | Garrison Relay disabled 8658 | -8/Garrison | Triggered checkpoint 8664 | -8/Garrison | Triggered checkpoint 8672 | -8/Garrison | Core integrity fell below 20% 8765 | -8/Garrison | Triggered checkpoint 8788 | -8/Garrison | Garrison Relay disabled 8838 | -8/Garrison | Discovered new exit (range 10) 8869 | -8/Garrison | Build established: Bothacker-Mutant 9076 | -8/Garrison | Triggered checkpoint 9152 | -8/Garrison | Triggered checkpoint 9573 | -8/Garrison | Spotted B-75 Beast 9591 | -8/Garrison | Discovered new exit (range 13) 9600 | -8/Garrison | Allies destroyed B-75 Beast 9612 | -8/Garrison | Triggered checkpoint 9672 | -8/Garrison | Garrison Relay disabled 10030 | -8/Garrison | Triggered checkpoint 10053 | -8/Garrison | Garrison Relay disabled 10125 | -8/Garrison | Discovered new exit (range 10) 10977 | -8/Garrison | Entered Factory 10977 | -7/Factory | Accompanied by 5 allies 10977 | -7/Factory | Evolved 2 slots: Utility x2 11688 | -7/Factory | Discovered new exit (range 9) 11834 | -7/Factory | P-70 Sage assimilated allied Guardian 4b 11840 | -7/Factory | Garrison activated, responded to threat 12047 | -7/Factory | Identified exit to Garrison 12088 | -7/Factory | Garrison activated, responded to threat 12129 | -7/Factory | Entered Garrison 12280 | -7/Garrison | Triggered checkpoint 12402 | -7/Garrison | Discovered new exit (range 15) 12408 | -7/Garrison | Triggered checkpoint 12497 | -7/Garrison | Triggered checkpoint 12670 | -7/Garrison | Triggered checkpoint 12791 | -7/Garrison | Triggered checkpoint 12832 | -7/Garrison | Triggered checkpoint 12876 | -7/Garrison | Triggered checkpoint 12879 | -7/Garrison | Discovered new exit (range 10) 12960 | -7/Garrison | Triggered checkpoint 12976 | -7/Garrison | Triggered checkpoint 13066 | -7/Garrison | Triggered checkpoint 13123 | -7/Garrison | Lost 3 parts (1p1n1w) 13137 | -7/Garrison | Garrison Relay disabled 13195 | -7/Garrison | Discovered new exit (range 9) 13224 | -7/Garrison | Expanded RIF knowledge: Program Shield 13952 | -7/Garrison | Triggered checkpoint 13994 | -7/Garrison | Garrison Relay disabled 14398 | -7/Garrison | Garrison Relay disabled 14510 | -7/Garrison | Build established: Commander-Mutant 14662 | -7/Garrison | Garrison Relay disabled 16057 | -7/Garrison | Build established: Bothacker-Mutant 16112 | -7/Garrison | Entered Factory 16112 | -7/Factory | Accompanied by 14 allies 16512 | -7/Factory | First assault squad dispatched 16512 | -7/Factory | Local fabrication network quarantined 16514 | -7/Factory | Identified exit to Garrison 16546 | -7/Factory | Fabricated Cmb. Airjet? 16672 | -7/Factory | Lost 3 parts (3p) 17001 | -7/Factory | Entered Garrison 17001 | -7/Garrison | Accompanied by 1 ally 17162 | -7/Garrison | Triggered checkpoint 17169 | -7/Garrison | Triggered checkpoint 17176 | -7/Garrison | Core integrity fell below 50% 17208 | -7/Garrison | Destroyed 7 combat bots 17355 | -7/Garrison | Discovered new exit (range 13) 17440 | -7/Garrison | Triggered checkpoint 17491 | -7/Garrison | Discovered new exit (range 11) 17515 | -7/Garrison | Expanded RIF knowledge: Autooverride 17677 | -7/Garrison | Discovered new exit (range 9) 17710 | -7/Garrison | Triggered checkpoint 17824 | -7/Garrison | Build established: Botlord-Mutant 17884 | -7/Garrison | Triggered checkpoint 18029 | -7/Garrison | Garrison Relay disabled 18284 | -7/Garrison | Triggered checkpoint 18298 | -7/Garrison | Garrison Relay disabled 18574 | -7/Garrison | Triggered checkpoint 18642 | -7/Garrison | Garrison Relay disabled 18658 | -7/Garrison | Triggered checkpoint 19126 | -7/Garrison | Triggered checkpoint 19193 | -7/Garrison | Garrison Relay disabled 19489 | -7/Garrison | Entered Factory 19489 | -6/Factory | Accompanied by 1 ally 19489 | -6/Factory | Evolved 2 slots: Propulsion x1, Utility x1 19884 | -6/Factory | Fabricated Cmb. Airjet? 19886 | -6/Factory | Local fabrication network quarantined 20448 | -6/Factory | Found Rocket Array 21239 | -6/Factory | First assault squad dispatched 21503 | -6/Factory | Identified exit to Garrison 21507 | -6/Factory | Entered Garrison 21516 | -6/Garrison | Expanded RIF knowledge: Structural Interface 21569 | -6/Garrison | Triggered checkpoint 21640 | -6/Garrison | Lost 3 parts (1n1u1w) 21646 | -6/Garrison | Garrison Relay disabled 21852 | -6/Garrison | Triggered checkpoint 21889 | -6/Garrison | Triggered checkpoint 21930 | -6/Garrison | Triggered checkpoint 21988 | -6/Garrison | Triggered checkpoint 22035 | -6/Garrison | Discovered new exit (range 9) 22085 | -6/Garrison | Triggered checkpoint 22113 | -6/Garrison | Garrison Relay disabled 22425 | -6/Garrison | Discovered new exit (range 13) 22486 | -6/Garrison | Triggered checkpoint 22528 | -6/Garrison | Garrison Relay disabled 22795 | -6/Garrison | Garrison Relay disabled 22837 | -6/Garrison | Discovered new exit (range 9) 23266 | -6/Garrison | Entered Factory 23266 | -6/Factory | Accompanied by 5 allies 23594 | -6/Factory | Core integrity fell below 50% 23862 | -6/Factory | Fabricated Imp. Medium Armor Plating? 24427 | -6/Factory | Garrison activated, responded to threat 24807 | -6/Factory | Discovered new exit (range 4) 24849 | -6/Factory | Fabricated M-28 Smith (x1) 24979 | -6/Factory | Entered Lower Caves 24979 | -6/Lower Caves | Accompanied by 9 allies 25329 | -6/Lower Caves | Identified exit to Lower Caves 25347 | -6/Lower Caves | Learned Factory garrison access intel 25550 | -6/Lower Caves | Entered another Lower Caves area 25550 | -6/Lower Caves | Accompanied by 9 allies 25649 | -6/Lower Caves | Destroyed 7 combat bots 25904 | -6/Lower Caves | Learned location of 1 exit from Factory 26024 | -6/Lower Caves | Learned location of Extension (-4) 26050 | -6/Lower Caves | Discovered new exit (range 5) 26090 | -6/Lower Caves | Entered Data Miner 26090 | -6/Data Miner | Accompanied by 8 allies 26090 | -6/Data Miner | Discovered new exit (range 6) 26106 | -6/Data Miner | Met Data Miner 26137 | -6/Data Miner | Acquired the access code to Warlord's prototype stash 26137 | -6/Data Miner | Learned location of Section 7 (-2) 26155 | -6/Data Miner | Received God Mode back door access code from Data Miner 26203 | -6/Data Miner | Entered Proximity Caves 26203 | -5/Proximity Caves | Accompanied by 8 allies 26250 | -5/Proximity Caves | Escorted by Enhanced Grunt 26279 | -5/Proximity Caves | Attracted the attention of an 0b10 base 27908 | -5/Proximity Caves | Discovered new exit (range 17) 28192 | -5/Proximity Caves | Entered Factory 28192 | -5/Factory | Accompanied by 2 allies 28192 | -5/Factory | Evolved 2 slots: Power x1, Utility x1 28193 | -5/Factory | Identified exit to Upper Caves 28195 | -5/Factory | Loaded intel: 4 garrison access locations 28736 | -5/Factory | Identified exit to Garrison 28737 | -5/Factory | Entered Garrison 28737 | -5/Garrison | Accompanied by 2 allies 28780 | -5/Garrison | Triggered checkpoint 28780 | -5/Garrison | Triggered checkpoint 28796 | -5/Garrison | Triggered checkpoint 28928 | -5/Garrison | Triggered checkpoint 29035 | -5/Garrison | Garrison Relay disabled 29138 | -5/Garrison | Triggered checkpoint 29293 | -5/Garrison | Discovered new exit (range 10) 29319 | -5/Garrison | Expanded RIF knowledge: Alert ID Control 30055 | -5/Garrison | Garrison Relay disabled 30072 | -5/Garrison | Triggered checkpoint 30202 | -5/Garrison | Discovered new exit (range 6) 30224 | -5/Garrison | Triggered checkpoint 30239 | -5/Garrison | Garrison Relay disabled 30418 | -5/Garrison | Triggered checkpoint 30428 | -5/Garrison | Garrison Relay disabled 30678 | -5/Garrison | Found Quantum Capacitor 31018 | -5/Garrison | Discovered new exit (range 12) 31047 | -5/Garrison | Entered Factory 31047 | -4/Factory | Accompanied by 5 allies 31047 | -4/Factory | Evolved 2 slots: Utility x2 31547 | -4/Factory | First assault squad dispatched 31648 | -4/Factory | Sucked down chute 31648 | -4/Factory | Entered Waste 31663 | -4/Waste | EMP discharged 31728 | -4/Waste | Spotted C-40 Crusher 31730 | -4/Waste | 5 allies followed down the chute 31748 | -4/Waste | Spotted C-40 Crusher 31760 | -4/Waste | Allies destroyed C-40 Crusher 31763 | -4/Waste | EMP discharged 31772 | -4/Waste | Allies destroyed C-40 Crusher 31773 | -4/Waste | Spotted C-40 Crusher 31773 | -4/Waste | Spotted C-40 Crusher 31799 | -4/Waste | Allies destroyed C-40 Crusher 31823 | -4/Waste | Spotted C-40 Crusher 31851 | -4/Waste | Spotted C-40 Crusher 31863 | -4/Waste | EMP discharged 31863 | -4/Waste | System corruption reached 10% 31903 | -4/Waste | Allies destroyed C-40 Crusher 31919 | -4/Waste | Found Damper Plating 31963 | -4/Waste | EMP discharged 32013 | -4/Waste | Discovered new exit (range 16) 32037 | -4/Waste | Entered Factory 32199 | -4/Factory | Identified exit to Upper Caves 32199 | -4/Factory | Identified exit to Extension 32199 | -4/Factory | Identified exit to Armory 33351 | -4/Factory | Entered Extension 33351 | -4/Extension | Accompanied by 1 ally 33782 | -4/Extension | Spotted B-86 Titan 33803 | -4/Extension | Destroyed B-86 Titan 33809 | -4/Extension | Assimilated Titan 7a with formatsys_high 33926 | -4/Extension | Disrupted transfer network 34031 | -4/Extension | Rescued A7 34062 | -4/Extension | Rescued a captive Derelict 34351 | -4/Extension | First assault squad dispatched 34634 | -4/Extension | Rescued a captive Derelict 34634 | -4/Extension | Rescued a captive Derelict 34680 | -4/Extension | Extracted ID and sensor layout for unrecognized location from A7's data core 34764 | -4/Extension | Rescued a captive Derelict 34866 | -4/Extension | Energy Cycler disabled 34867 | -4/Extension | Rescued a captive Derelict 34870 | -4/Extension | Rescued a captive Derelict 34956 | -4/Extension | Discovered new exit (range 10) 34958 | -4/Extension | Discovered new exit (range 6) 35147 | -4/Extension | Discovered new exit (range 15) 35176 | -4/Extension | Entered Research 35176 | -3/Research | Accompanied by 5 allies 35176 | -3/Research | Evolved 2 slots: Propulsion x1, Utility x1 35406 | -3/Research | Found Unknown Device 35406 | -3/Research | Identified Antimissile System 35421 | -3/Research | Discovered new exit (range 6) 35478 | -3/Research | Spotted B-86 Titan 35491 | -3/Research | Incoming investigation squad redirected 35557 | -3/Research | Identified exit to Research 35641 | -3/Research | Incoming assault squad redirected 35885 | -3/Research | Found Unknown Launcher 35885 | -3/Research | Identified Gamma Bomb Array 35905 | -3/Research | Fabricated Cmb. Gravmag System? 35926 | -3/Research | First assault squad dispatched 35954 | -3/Research | Incoming assault squad redirected 36156 | -3/Research | Spotted B-86 Titan 36165 | -3/Research | Identified exit to Quarantine 36193 | -3/Research | Incoming assault squad redirected 36213 | -3/Research | Spotted B-90 Cyclops 36374 | -3/Research | Incoming assault squad redirected 36440 | -3/Research | Lost 4 parts (2p1n1w) 36528 | -3/Research | Entered Quarantine 36558 | -3/Quarantine | Lost 8 parts (1p1n5u1w) 36663 | -3/Quarantine | Found Prototype Launcher 36663 | -3/Quarantine | Identified Adv. Micro-nuke Launcher 36808 | -3/Quarantine | Build established: Scavenger-Mutant 36846 | -3/Quarantine | Lost 4 parts (2n1u1w) 36863 | -3/Quarantine | Core integrity fell below 50% 37001 | -3/Quarantine | Released all parts (14) 37001 | -3/Quarantine | Spotted Alpha 7 37008 | -3/Quarantine | Core integrity fell below 20% 37022 | -3/Quarantine | Found Alien Artifact 37022 | -3/Quarantine | Identified Core Reset Matrix 37022 | -3/Quarantine | Used Core Reset Matrix 37026 | -3/Quarantine | Detected hypermatrix surge 37026 | -3/Quarantine | Emitted hypermatrix ping 37026 | -3/Quarantine | Sensed 12 artifacts in vicinity 37028 | -3/Quarantine | Lost 3 parts (2n1u) 37031 | -3/Quarantine | Assembled emerged from beneath the floor 37137 | -3/Quarantine | Crushed by falling debris 37138 | -3/Quarantine | Found Sigix Broadsword 37152 | -3/Quarantine | Cryocooling Duct disabled 37167 | -3/Quarantine | Ambient heat levels rising (+20) 37167 | -3/Quarantine | Non-combat units ordered to evacuate 37239 | -3/Quarantine | Found Matter Drive 37265 | -3/Quarantine | Found Stasis Generator 37318 | -3/Quarantine | Found Transdimensional Reconstructor 37320 | -3/Quarantine | Found Hpw. Transdimensional Reconstructor 37335 | -3/Quarantine | Warped through subspace 37336 | -3/Quarantine | Warped through subspace 37403 | -3/Quarantine | Destroyed by S-43 Plague with Heavy Machine Gun Last Messages --------------- 37318_ Acquired Transdimensional Reconstructor. 37320_ Acquired Hpw. Transdimensional Reconstructor. 37322_ Connecting with Teleportation Lab... 37330_ System corrupted: Matter fused (-5). 37335_ Warped through subspace. 37351_ System corrupted: Sigix Broadsword targeting data glitched. 37362_ C-30 ARC bursts open, deploying its payload. 37362_ S-43 Plague unfolds itself. 37367_ Slug penetrates Wall. 37370_ Adv. Heat Sink destroyed. 37370_ Slug penetrates Wall. 37370_ Penetrated by Slug. 37377_ Acquired Unknown Flight Unit. 37377_ Identified Q-thruster. 37378_ Electron Diverter destroyed. 37380_ Acquired 15 matter. 37388_ Acquired 2 matter. 37393_ Connecting with Terminal... 37402_ Electron Diverter destroyed. 37403_ Dropped Lgt. Antimatter Reactor. Map ----- +----------------------------------------------------+ | ???]?????????????????????????????? | | ?????????????????????????????????? | | ?????????????????????????????????? | | ?????????????????????????????????? | | ????????????????????????????###### | | ????????????????????????????# [ | | ????????????????????????????# | | ?????????????????!??????????# "" | | ???????????????????????#????# "" | | ???????????????????????# ???# "" | | ???????????????????????# ??# | | ???????????????????????? ?# "" | | ?????????????????????????? # "" | | ???????????????????????#??? / "" | | ???????????????????????# ???# | | ???????????????????????# ??# | | ???????????????????????# ?# | | ?????????############### #####! | | ?????###?# *|![ | | ######;### !!! | | # # = | | # """ # ? | | #| """ # #??################ | | # """ # #?????# # | | # = # ####### """ # | | # """ *@ = + """ # | | # """ # s s # """ """ # | | # """ # s + "T # | | # += ####### """ # | | ######+####+#######?# ! #" | | ???### ########+######% | | ???#"" # " | | ???#"" " # | | ???#"" "" # | | ???#T """ # | | ???#"" # ########## | | ???#"" """"""" # ?????????# | | ???#"" """"""" # ??????????# | | ???### """"""" =###???????????# | | ?????# ? #?????????????# | | ?????# ??? |#?????????????# | | ?????# ???? #?????????????# | | ??????#######?????#?????????????## | | ?????????????????????????????????# | | ?????????????????????????????????# | | ??????????????????????????????#### | | ??????????????????????????????# T | | ??????????????????????????????# | | ??????????????????????????????# " | | ??????????????????????????????# " | +----------------------------------------------------+ Best States ------------- Heat Dissipation 65 Energy Generation 41 Energy Capacity 2420 Matter Stores 550 Matter Capacity 550 Sight Range 22 Terrain Scan Range 16 Terrain Scan Density 10 Jamming Range 16 EM Shielding 2 Armor Coverage 1200 Resistance: EM 90 Propulsion Shielding 66 Weapon Cycling 15 Evasion (%) 63 Targeting Accuracy 22 Launcher Accuracy 40 Core Analysis 10 Armor Integrity Analysis 66 Recoil Reduction 4 Energy Filtering 50 Offensive Hacking 22 Item Schematics ----------------- None Robot Schematics ------------------ None Fabricated ------------ Cmb. Airjet | x2 | -7/Factory Cmb. Airjet | x2 | -6/Factory Imp. Medium Armor Plating | x1 | -6/Factory M-28 Smith | x1 | -6/Factory Cmb. Gravmag System | x2 | -3/Research Alien Tech Used ----------------- Core Reset Matrix Sigix Broadsword Stasis Generator Transdimensional Reconstructor High-powered Transdimensional Reconstructor Achievements -------------- None Challenges ------------ None Game ------ Seed MissileTeslaRifle Manual? 0 Play Time 05:05:40 Cumulative 454.3 hours Start 2020.09.03 @ 09:38:29 End 2020.09.05 @ 01:35:29 Sessions 7 Manual Loads 0 Difficulty Rogue Special Mode None Game No. 302 Rogue 302 Adventurer 0 Explorer 0 Win Type - Total 4 Types 4/0/0/0/0/0/0 Lore% 86 Gallery% 87 Achievement% 66 Wizard Run 0 Options --------- ASCII 0 Keyboard 0 Movement Mouse Keybinds 1 Fullscreen 2 Font 24/Smallcaps Map View 76x50 Tactical HUD 1 Map Filters NONE Filters NONE Steam 1 RUN: 6549d2dd-cd64-4977-b3ea-b800b608f1c6